fUSD/lending_fUSD_20260217
["ID","MTS","AMOUNT","RATE_DAILY","PERIOD"]
[405807620,1771330242503,-500.0,0.00015835,2]
[405807621,1771330242512,-500.0,0.00015835,2]
[405807622,1771330242522,-500.0,0.00015835,2]
[405807623,1771330242531,-578.20924308,0.00015835,2]
[405807625,1771330242541,-500.0,0.00015835,2]
[405807627,1771330242550,-500.0,0.00015835,2]
[405807629,1771330242560,-500.0,0.00015835,2]
[405807632,1771330242569,-500.0,0.00015835,2]
[405807635,1771330242579,-250.0,0.00015835,2]
[405807638,1771330242589,-250.0,0.00015835,2]
[405807639,1771330242598,-250.0,0.00015835,2]
[405807640,1771330242607,-250.0,0.00015835,2]
[405807641,1771330242617,-250.0,0.00015835,2]
[405807643,1771330242626,-291.48891739,0.00015835,2]
[405807645,1771330242635,-250.0,0.00015835,2]
[405807646,1771330242644,-250.0,0.00015835,2]
[405807647,1771330242653,-250.0,0.00015835,2]
[405807648,1771330242663,-250.0,0.00015835,2]
[405807649,1771330242673,-250.0,0.00015835,2]
[405807650,1771330242682,-250.0,0.00015835,2]
[405807651,1771330242692,-693.3919763,0.00015835,2]
[405807652,1771330242702,-162.380719,0.00015835,2]
[405807653,1771330242711,-9905.5980765,0.0001589,2]
[405807654,1771330242721,-151.0,0.0001589,2]
[405807655,1771330242731,-719.04747942,0.0001589,2]
[405807656,1771330242740,-10272.10520533,0.00015945,2]
[405807657,1771330242749,-151.0,0.00015945,2]
[405807658,1771330242759,-745.65223616,0.00015945,2]
[405807659,1771330242768,-5000.0,0.0001596,2]
[405807660,1771330242777,-2104.20747144,0.0001596,2]
[405807661,1771330242786,-2125.36664557,0.00016,2]
[405807662,1771330242795,-151.0,0.00016,2]
[405807663,1771330242805,-773.2413689,0.00016,2]
[405807664,1771330242814,-151.61045429,0.00016,2]
[405807665,1771330242824,-152.85835457,0.00016,2]
[405807666,1771330242833,-276.734435,0.00016,2]
[405807667,1771330242842,-156.57732778,0.00016015,2]
[405807668,1771330242851,-151.0,0.00016055,2]
[405807669,1771330242861,-801.85129955,0.00016055,2]
[405807670,1771330242870,-2000.0,0.00016082,2]
[405807671,1771330242879,-151.0,0.0001611,2]
[405807672,1771330242889,-831.51979763,0.0001611,2]
[405807673,1771330242898,-7910.59,0.00016116,2]
[405807674,1771330242907,-4372.013932,0.00016131,7]
[405807675,1771330242917,-151.0,0.00016165,2]
[405807676,1771330242927,-862.28603014,0.00016165,2]
[405807677,1771330242936,-151.0,0.0001622,2]
[405807678,1771330242945,-894.19061326,0.0001622,2]
[405807679,1771330242954,-484.11558281,0.00016223,2]
[405807680,1771330242964,-1000.0,0.00016236,7]
[405807681,1771330242974,-151.0,0.00016275,2]
[405807682,1771330242983,-927.27566595,0.00016275,2]
[405807683,1771330242992,-1600.0,0.00016319,2]
[405807684,1771330243002,-151.0,0.0001633,2]
[405807685,1771330243011,-961.58486559,0.0001633,2]
[405807686,1771330243021,-500.0,0.00016356,2]
[405807687,1771330243031,-500.0,0.00016356,2]
[405807688,1771330243040,-5311.088329,0.00016361,7]
[405807689,1771330243049,-771.01748645,0.00016383,2]
[405807690,1771330243058,-204.10289238,0.00016383,2]
[405807691,1771330243067,-527.32864652,0.00016383,2]
[405807692,1771330243076,-184.18279927,0.00016383,2]
[405807693,1771330243086,-217.15233878,0.00016383,2]
[405807694,1771330243095,-200.0,0.00016383,2]
[405807695,1771330243104,-151.0,0.00016385,2]
[405807696,1771330243114,-997.16350561,0.00016385,2]
[405807697,1771330243127,-151.0,0.0001644,2]
[405807698,1771330243137,-9917.64356668,0.0001645,2]
[405807699,1771330243146,-15296.93137855,0.00016492,2]
[405807700,1771330243155,-151.0,0.00016495,2]
[405807701,1771330243166,-151.0,0.0001655,2]
[405807702,1771330243176,-267.05598539,0.00016605,2]
[405807703,1771330243186,-3026.41392447,0.00016684,2]
[405807704,1771330243197,-1783.5563983,0.00016739,2]
[405807705,1771330243206,-500.0,0.000169,5]
[405807706,1771330243215,-555.49,0.000169,2]
[405807707,1771330243225,-495.13183978,0.00016931,2]
[405807708,1771330243235,-225.18697532,0.00016931,2]
[405807709,1771330243244,-500.0,0.00017,2]
[405807710,1771330243254,-503.03810445,0.00017,5]
[405807711,1771330243263,-160.32510575,0.00017204,2]
[405807712,1771330243272,-168.3888056,0.00017204,2]
[405807713,1771330243282,-1159.35244692,0.00017219,2]
[405807714,1771330243291,-19509.445389,0.00017298,7]
[405807715,1771330243301,-500.0,0.000173,4]
[405807716,1771330243310,-350.0,0.00017307,2]
[405807717,1771330243321,-500.0,0.000174,3]
[405807718,1771330243330,-500.0,0.000174,2]
[405807719,1771330243339,-150.0,0.00017449,2]
[405807720,1771330243348,-200.0,0.00017449,2]
[405807721,1771330243358,-197.764,0.00017449,2]
[405807722,1771330243367,-250.0,0.00017449,2]
[405807723,1771330243376,-231.713,0.00017449,2]
[405807724,1771330243386,-275.559,0.00017449,2]
[405807725,1771330243396,-160.03,0.00017449,2]
[405807726,1771330243405,-192.151,0.00017449,2]
[405807727,1771330243415,-213.324,0.00017449,2]
[405807728,1771330243424,-250.0,0.00017449,2]
[405807729,1771330243434,-174.0,0.00017449,2]
[405807730,1771330243443,-234.143,0.00017449,2]
[405807731,1771330243452,-1164.0,0.00017449,2]
[405807732,1771330243461,-3519.74,0.00017449,2]
[405807733,1771330243470,-619.543,0.00017449,2]
[405807734,1771330243480,-2000.0,0.00017452,7]
[405807735,1771330243489,-350.0,0.00017459,2]
[405807736,1771330243502,-233.51889341,0.00017479,2]
[405807737,1771330243511,-3701.0,0.000175,2]
[405807738,1771330243521,-234.9,0.00017553,2]
[405807739,1771330243530,-350.0,0.00017636,2]
[405807740,1771330243539,-6001.36620396,0.0001764,2]
[405807741,1771330243548,-473.31058807,0.00017667,2]
[405807742,1771330243557,-1088.37215301,0.00017667,2]
[405807743,1771330243567,-500.0,0.00017726,7]
[405807744,1771330243576,-2004.41635969,0.0001773,2]
[405807745,1771330243585,-444.64,0.00017808,2]
[405807746,1771330243594,-500.0,0.00017808,2]
[405807747,1771330243604,-500.0,0.00017808,2]
[405807748,1771330243613,-500.0,0.00017808,2]
[405807749,1771330243622,-500.0,0.00017808,2]
[405807750,1771330243632,-595.71508911,0.00017808,2]
[405807751,1771330243642,-500.0,0.00017808,2]
[405807752,1771330243651,-500.0,0.00017808,2]
[405807753,1771330243660,-500.0,0.00017808,2]
[405807754,1771330243669,-500.0,0.00017808,2]
[405807755,1771330243679,-800.0,0.00017808,2]
[405807756,1771330243689,-250.0,0.00017808,20]
[405807757,1771330243699,-250.0,0.00017808,20]
[405807758,1771330243708,-250.0,0.00017808,20]
[405807759,1771330243718,-250.0,0.00017808,20]
[405807760,1771330243727,-250.0,0.00017808,20]
[405807761,1771330243736,-250.0,0.00017808,20]
[405807762,1771330243746,-250.0,0.00017808,20]
[405807763,1771330243755,-250.0,0.00017808,20]
[405807764,1771330243765,-250.0,0.00017808,20]
[405807765,1771330243774,-250.0,0.00017808,20]
[405807766,1771330243784,-250.0,0.00017808,20]
[405807768,1771330243794,-250.0,0.00017808,20]
[405807769,1771330243803,-250.0,0.00017808,20]
[405807770,1771330243813,-250.0,0.00017808,20]
[405807771,1771330243823,-250.0,0.00017808,20]
[405807772,1771330243832,-250.0,0.00017808,20]
[405807773,1771330243842,-250.0,0.00017808,20]
[405807774,1771330243851,-250.0,0.00017808,20]
[405807775,1771330243861,-250.0,0.00017808,20]
[405807776,1771330243871,-250.0,0.00017808,20]
[405807777,1771330243880,-250.0,0.00017808,20]
[405807778,1771330243890,-211.316222,0.00017808,20]
[405807779,1771330243899,-258.29145491,0.00017828,2]
[405807780,1771330243908,-350.0,0.00017854,2]
[405807781,1771330243918,-500.0,0.00017855,2]
[405807782,1771330243929,-200.0,0.00017855,2]
[405807783,1771330243938,-500.0,0.00017856,2]
[405807784,1771330243948,-500.0,0.00017856,2]
[405807785,1771330243958,-200.0,0.00017856,2]
[405807786,1771330243968,-200.0,0.00017856,2]
[405807787,1771330243978,-1783.5563983,0.00017899,2]
[405807788,1771330243988,-1179.66154524,0.000179,2]
[405807789,1771330243999,-890.26,0.000179,2]
[405807790,1771330244061,-500.0,0.000179,2]
[405807791,1771330244071,-500.0,0.000179,2]
[405807792,1771330244080,-500.0,0.000179,2]
[405807794,1771330244090,-500.0,0.000179,2]
[405807796,1771330244099,-500.0,0.000179,2]
[405807798,1771330244109,-500.0,0.000179,2]
[405807800,1771330244118,-1000.0,0.000179,2]
[405807801,1771330244133,-500.0,0.000179,2]
[405807802,1771330244142,-500.0,0.000179,2]
[405807803,1771330244152,-1051.12862644,0.000179,2]
[405807804,1771330244163,-336.2005368,0.000179,2]
[405807805,1771330244172,-8326.4100907,0.000179,2]
[405807806,1771330244182,-10040.43634857,0.000179,2]
[405807807,1771330244191,-500.0,0.000179,2]
[405807808,1771330244204,-500.0,0.000179,2]
[405807809,1771330244214,-500.0,0.000179,2]
[405807810,1771330244223,-500.0,0.000179,2]
[405807811,1771330244233,-500.0,0.000179,2]
[405807812,1771330244242,-500.0,0.000179,2]
[405807813,1771330244252,-500.0,0.000179,2]
[405807814,1771330244261,-500.0,0.000179,2]
[405807815,1771330244271,-500.0,0.000179,2]
[405807816,1771330244281,-500.0,0.000179,2]
[405807817,1771330244290,-500.0,0.000179,2]
[405807818,1771330244300,-500.0,0.000179,2]
[405807819,1771330244309,-500.0,0.000179,2]
[405807820,1771330244318,-500.0,0.000179,2]
[405807821,1771330244328,-500.0,0.000179,2]
[405807822,1771330244337,-500.0,0.000179,2]
[405807823,1771330244346,-500.0,0.000179,2]
[405807824,1771330244356,-500.0,0.000179,2]
[405807825,1771330244366,-350.0,0.0001793,2]
[405807826,1771330244375,-24155.0,0.00017973,2]
[405807827,1771330244385,-504.09468333,0.00017973,2]
[405807828,1771330244395,-509.85751715,0.00017973,2]
[405807829,1771330244404,-573.45760824,0.00017973,2]
[405807830,1771330244414,-500.0,0.00017973,2]
[405807831,1771330244423,-616.27940406,0.00017973,2]
[405807832,1771330244433,-500.99019732,0.00017973,2]
[405807833,1771330244443,-503.2366262,0.00017973,2]
[405807834,1771330244453,-194.4116551,0.00017973,2]
[405807835,1771330244463,-500.0,0.00017973,2]
[405807836,1771330244472,-501.35605949,0.00017973,2]
[405807837,1771330244481,-500.0,0.00017973,2]
[405807838,1771330244491,-500.0,0.00017973,2]
[405807839,1771330244500,-500.0,0.00017973,2]
[405807840,1771330244510,-500.67013055,0.00017973,2]
[405807841,1771330244519,-310.16973746,0.00017973,2]
[405807842,1771330244528,-500.0,0.00017973,2]
[405807843,1771330244538,-500.0,0.00017973,2]
[405807844,1771330244547,-500.0,0.00017973,2]
[405807845,1771330244557,-588.14229004,0.00017973,2]
[405807846,1771330244567,-502.80271569,0.00017973,2]
[405807847,1771330244576,-500.60659592,0.00017973,2]
[405807848,1771330244587,-501.06962982,0.00017973,2]
[405807849,1771330244597,-500.0,0.00017973,2]
[405807850,1771330244609,-502.37992604,0.00017973,2]
[405807851,1771330244620,-163.14629325,0.00017973,2]
[405807852,1771330244630,-504.66274009,0.00017973,2]
[405807853,1771330244640,-501.78719611,0.00017973,2]
[405807854,1771330244651,-500.0,0.00017973,2]
[405807855,1771330244660,-501.59728131,0.00017973,2]
[405807856,1771330244670,-504.49684223,0.00017973,2]
[405807857,1771330244680,-168.45138887,0.00017973,2]
[405807858,1771330244690,-500.0,0.00017973,2]
[405807859,1771330244700,-947.1253165,0.00017982,2]
[405807860,1771330244710,-501.63998828,0.0001799,2]
[405807861,1771330244720,-665.75189293,0.0001799,2]
[405807862,1771330244729,-592232.3460595,0.00017991,2]
[405807863,1771330244740,-402.56825335,0.00017997,2]
[405807864,1771330244749,-300.0,0.00017999,2]
[405807865,1771330244760,-300.0,0.00017999,2]
[405807866,1771330244769,-666.0,0.00017999,2]
[405807867,1771330244779,-240.96773432,0.00017999,2]
[405807868,1771330244789,-666.0,0.00017999,2]
[405807869,1771330244799,-300.0,0.00017999,2]
[405807870,1771330244808,-666.0,0.00017999,2]
[405807871,1771330244818,-666.0,0.00017999,2]
[405807872,1771330244828,-150.0,0.00017999,2]
[405807873,1771330244838,-150.0,0.00017999,2]
[405807874,1771330244848,-269.76817122,0.00017999,2]
[405807875,1771330244859,-299.999,0.00018,2]
[405807876,1771330244869,-1076250.52062985,0.00018,2]
[405807877,1771330244879,-7514.99024711,0.00018,2]
[405807878,1771330244889,-70287.04519593,0.00018,2]
[405807879,1771330244899,-9223049.65467424,0.00018,2]
[405807880,1771330244909,-150.0,0.00018,2]
[405807881,1771330244919,-2035.41018249,0.00018,2]
[405807882,1771330244930,-150.0,0.00018,2]
[405807883,1771330244943,-3080.85541333,0.00018,2]
[405807884,1771330244958,-200.0,0.00018,2]
[405807885,1771330244968,-1508.0,0.00018,2]
[405807886,1771330245197,-1508.0,0.00018,2]
[405807887,1771330245209,-1508.0,0.00018,2]
[405807888,1771330245219,-152.0,0.00018,2]
[405807889,1771330245229,-1508.0,0.00018,2]
[405807890,1771330245239,-152.0,0.00018,2]
[405807891,1771330245249,-1508.0,0.00018,2]
[405807893,1771330245259,-1508.0,0.00018,2]
[405807894,1771330245268,-1508.0,0.00018,2]
[405807895,1771330245278,-1508.0,0.00018,2]
[405807896,1771330245287,-1508.0,0.00018,2]
[405807897,1771330245297,-1508.0,0.00018,2]
[405807898,1771330245307,-1508.0,0.00018,2]
[405807899,1771330245318,-200.0,0.00018,2]
[405807900,1771330245328,-151.0,0.00018,2]
[405807901,1771330245338,-151.0,0.00018,2]
[405807902,1771330245348,-151.0,0.00018,2]
[405807903,1771330245358,-151.0,0.00018,2]
[405807904,1771330245368,-151.0,0.00018,2]
[405807905,1771330245379,-200.0,0.00018,2]
[405807906,1771330245389,-772.26,0.00018,7]
[405807907,1771330245399,-151.0,0.00018,2]
[405807908,1771330245408,-157.404271,0.00018,2]
[405807909,1771330245418,-157.404271,0.00018,2]
[405807910,1771330245428,-157.404271,0.00018,2]
[405807911,1771330245438,-157.404271,0.00018,2]
[405807912,1771330245448,-302.0,0.00018,2]
[405807913,1771330245458,-381.98059171,0.00018,2]
[405807914,1771330245467,-840.0,0.00018,2]
[405807915,1771330245477,-309.0,0.00018,2]
[405807916,1771330245487,-444.33213336,0.00018,2]
[405807917,1771330245496,-1783.60803,0.00018,2]
[405807918,1771330245506,-1783.60803,0.00018,2]
[405807919,1771330245516,-1783.60803,0.00018,2]
[405807920,1771330245526,-1783.60803,0.00018,2]
[405807921,1771330245536,-1969.67004,0.00018,2]
[405807922,1771330245546,-1969.67004,0.00018,2]
[405807923,1771330245558,-2000.0,0.00018,2]
[405807924,1771330245568,-1969.67004,0.00018,2]
[405807925,1771330245577,-2000.0,0.00018,2]
[405807926,1771330245587,-2000.0,0.00018,2]
[405807927,1771330245597,-2000.0,0.00018,2]
[405807928,1771330245607,-1969.67004,0.00018,2]
[405807929,1771330245617,-167.064397,0.00018,2]
[405807930,1771330245629,-167.064397,0.00018,2]
[405807931,1771330245638,-167.064397,0.00018,2]
[405807932,1771330245649,-167.064397,0.00018,2]
[405807933,1771330245658,-151.0,0.00018,2]
[405807934,1771330245668,-457.741827,0.00018,2]
[405807935,1771330245678,-457.741827,0.00018,2]
[405807936,1771330245687,-457.741827,0.00018,2]
[405807937,1771330245698,-457.741827,0.00018,2]
[405807938,1771330245709,-1000.0,0.00018,2]
[405807939,1771330245720,-1069.171485,0.00018,2]
[405807940,1771330245730,-150.0,0.00018,2]
[405807941,1771330245739,-200.0,0.00018,2]
[405807942,1771330245748,-150.0,0.00018,2]
[405807943,1771330245758,-151.0,0.00018,2]
[405807944,1771330245768,-151.0,0.00018,2]
[405807945,1771330245777,-151.0,0.00018,2]
[405807946,1771330245787,-151.0,0.00018,2]
[405807947,1771330245797,-151.0,0.00018,2]
[405807948,1771330245806,-500.0,0.00018005,2]
[405807949,1771330245815,-629.0,0.00018005,2]
[405807950,1771330245825,-250.35514412,0.00018027,2]
[405807951,1771330245835,-500.0,0.00018055,2]
[405807952,1771330245845,-500.0,0.00018055,2]
[405807953,1771330245855,-500.0,0.00018055,2]
[405807954,1771330245865,-500.0,0.00018055,2]
[405807955,1771330245875,-301.0,0.00018055,2]
[405807956,1771330245884,-500.0,0.00018055,2]
[405807957,1771330245894,-301.0,0.00018055,2]
[405807958,1771330245903,-707.0,0.00018055,2]
[405807959,1771330245913,-500.0,0.00018055,2]
[405807961,1771330245922,-250.0,0.00018055,2]
[405807963,1771330245931,-500.0,0.00018055,2]
[405807964,1771330245941,-196.0,0.00018055,2]
[405807965,1771330245950,-350.0,0.0001807,2]
[405807966,1771330245959,-500.0,0.00018087,2]
[405807968,1771330245969,-177.0,0.00018087,2]
[405807969,1771330245978,-168.0,0.00018109,2]
[405807970,1771330245988,-168.0,0.00018114,2]
[405807971,1771330245997,-500.0,0.00018137,2]
[405807972,1771330246007,-500.0,0.00018137,2]
[405807973,1771330246017,-380.0,0.00018137,2]
[405807974,1771330246026,-480.0,0.00018137,2]
[405807975,1771330246034,-334.0,0.00018137,2]
[405807976,1771330246044,-300.0,0.00018137,2]
[405807977,1771330246053,-150.0,0.00018137,2]
[405807978,1771330246063,-417.0,0.00018137,2]
[405807979,1771330246072,-451.0,0.00018169,2]
[405807980,1771330246081,-200.0,0.0001818,2]
[405807981,1771330246091,-200.0,0.0001818,2]
[405807982,1771330246101,-500.0,0.00018219,2]
[405807983,1771330246110,-420.0,0.00018219,2]
[405807984,1771330246120,-320.0,0.00018219,2]
[405807985,1771330246131,-222.0,0.00018219,2]
[405807986,1771330246141,-200.0,0.00018219,2]
[405807987,1771330246151,-278.0,0.00018219,2]
[405807988,1771330246160,-350.0,0.00018268,2]
[405807989,1771330246170,-382.0,0.00018279,2]
[405807990,1771330246179,-501.0,0.00018299,3]
[405807991,1771330246189,-350.0,0.00018343,2]
[405807992,1771330246201,-300.0,0.00018355,2]
[405807993,1771330246211,-300.0,0.00018355,2]
[405807994,1771330246221,-666.0,0.00018355,2]
[405807995,1771330246230,-300.0,0.00018355,2]
[405807996,1771330246240,-666.0,0.00018355,2]
[405807997,1771330246249,-666.0,0.00018355,2]
[405807998,1771330246259,-83953.39,0.00018356,2]
[405807999,1771330246269,-1600.0,0.00018359,2]
[405808000,1771330246278,-200.0,0.00018362,2]
[405808001,1771330246288,-200.0,0.00018362,2]
[405808002,1771330246297,-223.80047545,0.00018395,2]
[405808003,1771330246835,-1051.19952455,0.00018395,2]
[405808004,1771330246845,-150.0,0.00018395,2]
[405808005,1771330246854,-1209.0,0.000184,2]
[405808006,1771330246863,-2452.0,0.000184,2]
[405808007,1771330246872,-5973.0,0.000184,2]
[405808008,1771330246882,-297.46867344,0.00018467,2]
[405808009,1771330246983,-423.132,0.000154,2]
[405808010,1771330246993,-700.29402351,0.00015562,2]
[405808011,1771330247005,-5956.75287381,0.00015562,2]
[405808012,1771330247014,-412.0,0.000184,2]
[405808013,1771330247024,-52.53132656,0.00018467,2]
[405808014,1771330247033,-292.53390119,0.000185,2]
[405808015,1771330247043,-1000.0,0.00018521,2]
[405808016,1771330247053,-213.36943428,0.00018521,2]
[405808017,1771330247062,-1000.0,0.00018521,2]
[405808018,1771330247072,-1000.0,0.00018521,2]
[405808019,1771330247081,-1000.0,0.00018521,2]
[405808020,1771330247091,-502.88998638,0.00018521,2]
[405808021,1771330247099,-1000.0,0.00018521,2]
[405808022,1771330247108,-502.53760547,0.00018521,2]
[405808023,1771330247119,-1000.0,0.00018521,2]
[405808024,1771330247131,-501.26419244,0.00018521,2]
[405808025,1771330247140,-2231.7,0.00018533,2]
[405808026,1771330247150,-200.0,0.00018545,2]
[405808027,1771330247162,-200.0,0.00018545,2]
[405808028,1771330247173,-2000.0,0.00018548,7]
[405808029,1771330247184,-168.19115038,0.00018573,2]
[405808030,1771330247196,-747.8093786,0.00018574,2]
[405808031,1771330247207,-599.60298507,0.00018574,2]
[405808032,1771330247216,-200.0,0.00018731,2]
[405808033,1771330247226,-200.0,0.00018731,2]
[405808034,1771330247235,-194.585,0.000188,8]
[405808035,1771330247245,-500.0,0.00018822,7]
[405808036,1771330247254,-350.0,0.00018878,2]
[405808037,1771330247263,-30000.0,0.000189,2]
[405808038,1771330247272,-803.57150331,0.00018904,2]
[405808039,1771330247282,-501.0,0.00018948,3]
[405808040,1771330247291,-4031.7501698,0.00019,2]
[405808041,1771330247384,-4787.85822542,0.00019,2]
[405808042,1771330247393,-378.71874303,0.00019,2]
[405808043,1771330247403,-21771.72913636,0.00019,2]
[405808044,1771330247413,-500.0,0.00019,2]
[405808045,1771330247422,-500.0,0.00019,2]
[405808046,1771330247432,-500.0,0.00019,2]
[405808047,1771330247443,-500.0,0.00019,2]
[405808048,1771330247452,-500.0,0.00019,2]
[405808049,1771330247462,-269.56552599,0.00019,2]
[405808050,1771330247472,-350.0,0.00019,2]
[405808051,1771330247481,-200.0,0.00019,2]
[405808052,1771330247491,-1500.0,0.00019068,2]
[405808053,1771330247501,-1500.0,0.00019068,2]
[405808054,1771330247511,-1510.51189712,0.00019068,2]
[405808055,1771330247520,-746.96831808,0.00019068,2]
[405808056,1771330247529,-1500.0,0.00019068,2]
[405808057,1771330247538,-500.0,0.00019096,7]
[405808058,1771330247547,-5016.72175524,0.00019152,2]
[405808059,1771330247557,-235.93633334,0.00019178,2]
[405808060,1771330247567,-492.668276,0.00019178,2]
[405808061,1771330247576,-492.668276,0.00019178,2]
[405808062,1771330247585,-492.668276,0.00019178,2]
[405808063,1771330247595,-492.668276,0.00019178,2]
[405808064,1771330247604,-1136.19827536,0.00019236,2]
[405808065,1771330247613,-350.0,0.00019339,2]
[405808066,1771330247622,-189.36637923,0.00019409,2]
[405808067,1771330247631,-396.0,0.0001943,2]
[405808068,1771330247640,-1751.06105486,0.00019479,2]
[405808069,1771330247649,-1751.06105486,0.00019562,2]
[405808070,1771330247658,-501.0,0.00019598,4]
[405808071,1771330247667,-189.36637923,0.00019601,2]
[405808072,1771330247676,-409.50775716,0.00019616,2]
[405808073,1771330247687,-658.35387756,0.00019616,2]
[405808074,1771330247696,-2000.0,0.00019616,2]
[405808075,1771330247705,-1751.06105486,0.00019644,2]
[405808076,1771330247714,-2000.0,0.00019644,7]
[405808077,1771330247723,-1751.06105486,0.00019699,2]
[405808078,1771330247733,-1751.06105486,0.00019781,2]
[405808079,1771330247742,-189.36637923,0.00019793,2]
[405808080,1771330247751,-156.6,0.00019843,2]
[405808081,1771330247760,-1751.06105486,0.00019863,2]
[405808082,1771330247770,-4936.26071306,0.000199,3]
[405808083,1771330247779,-30000.0,0.000199,2]
[405808084,1771330247788,-2316.8,0.000199,7]
[405808085,1771330247798,-1751.06105486,0.00019945,2]
[405808086,1771330247807,-160.57318335,0.00019969,2]
[405808087,1771330247816,-382.0,0.00019969,2]
[405808088,1771330247825,-156.6,0.00019987,2]
[405808089,1771330247834,-300.0,0.00019999,2]
[405808090,1771330247843,-502.75243677,0.00019999,2]
[405808091,1771330247854,-300.0,0.00019999,2]
[405808092,1771330247863,-666.0,0.00019999,2]
[405808093,1771330247873,-360.45457926,0.0002,30]
[405808094,1771330247883,-360.45457926,0.0002,30]
[405808095,1771330247893,-62293.42808638,0.0002,30]
[405808096,1771330247902,-16081.08653714,0.0002,2]
[405808097,1771330247911,-2464.68,0.0002,2]
[405808098,1771330247920,-3950.0,0.0002,2]
[405808099,1771330247930,-1297.79050701,0.0002,2]
[405808100,1771330247938,-1000.0,0.0002,7]
[405808101,1771330247947,-260.06972769,0.0002,30]
[405808102,1771330247956,-2870.8241158,0.0002,2]
[405808103,1771330247965,-12956.49713374,0.0002,2]
[405808104,1771330247974,-154.76427951,0.0002,2]
[405808105,1771330247983,-360.45457926,0.0002,30]
[405808106,1771330247992,-1006.83792483,0.0002,30]
[405808107,1771330248001,-151.0,0.0002,2]
[405808108,1771330248011,-24433.4605891,0.0002,14]
[405808109,1771330248020,-6356.20485502,0.0002,120]
[405808110,1771330248030,-3366.61008163,0.0002,2]
[405808111,1771330248039,-173.57638878,0.0002,30]
[405808112,1771330248052,-160.0,0.0002,30]
[405808113,1771330248068,-445.069189,0.0002,2]
[405808114,1771330248077,-500.0,0.0002,120]
[405808115,1771330248087,-500.0,0.0002,30]
[405808116,1771330248097,-500.0,0.0002,120]
[405808117,1771330248107,-500.0,0.0002,30]
[405808118,1771330248115,-500.0,0.0002,120]
[405808119,1771330248126,-500.0,0.0002,30]
[405808120,1771330248136,-500.0,0.0002,120]
[405808121,1771330248145,-616.35430946,0.0002,30]
[405808122,1771330248154,-500.0,0.0002,120]
[405808123,1771330248163,-500.0,0.0002,120]
[405808124,1771330248175,-500.0,0.0002,120]
[405808125,1771330248186,-500.0,0.0002,120]
[405808126,1771330248195,-500.0,0.0002,120]
[405808127,1771330248206,-453.21457922,0.0002,120]
[405808128,1771330248215,-150.0,0.0002,20]
[405808129,1771330248224,-200.0,0.0002,2]
[405808130,1771330248234,-8720.0,0.0002001,2]
[405808131,1771330248244,-1751.06105486,0.00020027,2]
[405808132,1771330248253,-1751.06105486,0.0002011,2]
[405808133,1771330248263,-2500.0,0.00020164,2]
[405808134,1771330248272,-1751.06105486,0.00020192,2]
[405808135,1771330248281,-1751.06105486,0.00020247,2]
[405808136,1771330248291,-501.0,0.00020247,4]
[405808137,1771330248300,-300.0,0.00020275,2]
[405808138,1771330248310,-325.08121142,0.00020275,2]
[405808139,1771330248319,-300.0,0.00020275,2]